[Event "Rapid Tournament (RAP)"]
[Site "Biel, Switzerland"]
[Date "2026.07.12"]
[Round "5.20"]
[White "Manko, Mariia"]
[Black "Villiger, Jan"]
[Result "0-1"]
[TimeControl "15 + 5"]
[WhiteTitle "-"]
[BlackTitle "-"]
[WhiteFideId "14199220"]
[BlackFideId "1340891"]
[WhiteElo "2210"]
[BlackElo "1846"]

1. d4 {[%clk 00:15:08]} {[%emt 00:00:05]} Nf6 {[%clk 00:15:09]} 2. c4 {[%clk
00:15:12]} g6 {[%clk 00:15:13]} 3. g3 {[%clk 00:15:16]} c6 {[%clk 00:15:16]}
{[%emt 00:00:03]} 4. Bg2 {[%clk 00:15:18]} {[%emt 00:00:02]} d5 {[%clk
00:15:20]} {[%emt 00:00:01]} 5. Nf3 {[%clk 00:15:16]} {[%emt 00:00:07]} Bg7
{[%clk 00:15:23]} {[%emt 00:00:02]} 6. O-O {[%clk 00:15:18]} {[%emt 00:00:03]}
O-O {[%clk 00:15:26]} {[%emt 00:00:02]} 7. Nc3 {[%clk 00:15:12]} {[%emt
00:00:11]} dxc4 {[%clk 00:15:29]} {[%emt 00:00:01]} 8. e4 {[%clk 00:15:17]} a5
{[%clk 00:15:24]} {[%emt 00:00:11]} 9. Qe2 {[%clk 00:15:02]} {[%emt 00:00:19]}
Be6 {[%clk 00:15:08]} {[%emt 00:00:21]} 10. Rd1 {[%clk 00:14:21]} {[%emt
00:00:45]} b5 {[%clk 00:14:11]} {[%emt 00:01:02]} 11. d5 {[%clk 00:11:50]}
{[%emt 00:02:37]} cxd5 {[%clk 00:14:12]} {[%emt 00:00:04]} 12. e5 {[%clk
00:09:23]} {[%emt 00:02:32]} Nfd7 {[%clk 00:12:42]} {[%emt 00:01:34]} 13. Nxd5
{[%clk 00:08:10]} {[%emt 00:01:19]} Nc6 {[%clk 00:11:58]} {[%emt 00:00:49]} 14.
Ng5 {[%clk 00:06:06]} {[%emt 00:02:09]} Bxd5 {[%clk 00:09:47]} {[%emt
00:02:16]} 15. Bxd5 {[%clk 00:03:19]} {[%emt 00:02:52]} Ncxe5 {[%clk 00:09:40]}
{[%emt 00:00:13]} 16. Bxa8 {[%clk 00:01:29]} {[%emt 00:01:55]} Qxa8 {[%clk
00:09:43]} {[%emt 00:00:01]} 17. Bf4 {[%clk 00:01:15]} {[%emt 00:00:19]} h6
{[%clk 00:09:09]} {[%emt 00:00:39]} 18. Ne4 {[%clk 00:00:48]} {[%emt 00:00:32]}
Nd3 {[%clk 00:08:40]} {[%emt 00:00:33]} 19. Rxd3 {[%clk 00:00:46]} {[%emt
00:00:08]} cxd3 {[%clk 00:08:41]} {[%emt 00:00:04]} 20. Qxd3 {[%clk 00:00:50]}
{[%emt 00:00:02]} Ne5 {[%clk 00:08:23]} {[%emt 00:00:22]} 21. Bxe5 {[%clk
00:00:49]} {[%emt 00:00:06]} Bxe5 {[%clk 00:08:26]} {[%emt 00:00:01]} 22. Re1
{[%clk 00:00:49]} {[%emt 00:00:06]} Bxb2 {[%clk 00:07:03]} {[%emt 00:01:28]} 23.
Qxb5 {[%clk 00:00:52]} {[%emt 00:00:02]} Bg7 {[%clk 00:06:53]} {[%emt
00:00:15]} 24. Nc5 {[%clk 00:00:45]} {[%emt 00:00:11]} Qd5 {[%clk 00:06:23]}
{[%emt 00:00:36]} 25. Qxa5 {[%clk 00:00:12]} {[%emt 00:00:39]} Ra8 {[%clk
00:05:35]} {[%emt 00:00:52]} 26. Qc7 {[%clk 00:00:16]} Rxa2 {[%clk 00:04:50]}
{[%emt 00:00:51]} 27. Qb8+ {[%clk 00:00:13]} {[%emt 00:00:08]} Kh7 {[%clk
00:04:50]} {[%emt 00:00:04]} 28. Qb3 {[%clk 00:00:10]} {[%emt 00:00:09]} Qxb3
{[%clk 00:04:30]} {[%emt 00:00:24]} 29. Nxb3 {[%clk 00:00:13]} {[%emt
00:00:02]} Rb2 {[%clk 00:04:16]} {[%emt 00:00:19]} 30. Nc5 {[%clk 00:00:14]}
{[%emt 00:00:04]} Bd4 {[%clk 00:04:15]} {[%emt 00:00:06]} 31. Ne4 {[%clk
00:00:07]} {[%emt 00:00:12]} f5 {[%clk 00:04:06]} {[%emt 00:00:15]} 32. Rd1
{[%clk 00:00:10]} {[%emt 00:00:01]} e5 {[%clk 00:04:04]} {[%emt 00:00:07]} 33.
Nd2 {[%clk 00:00:13]} {[%emt 00:00:02]} Kg7 {[%clk 00:03:59]} {[%emt 00:00:10]}
34. Kf1 {[%clk 00:00:14]} {[%emt 00:00:03]} Kf6 {[%clk 00:04:02]} {[%emt
00:00:02]} 35. Ke2 {[%clk 00:00:15]} {[%emt 00:00:05]} Bc3 {[%clk 00:04:06]}
{[%emt 00:00:01]} 36. Kd3 {[%clk 00:00:07]} {[%emt 00:00:13]} Bxd2 {[%clk
00:04:06]} {[%emt 00:00:05]} 37. Rxd2 {[%clk 00:00:10]} {[%emt 00:00:02]} Rxd2+
{[%clk 00:04:09]} {[%emt 00:00:01]} 38. Kxd2 {[%clk 00:00:14]} {[%emt
00:00:01]} Ke6 {[%clk 00:04:13]} 39. f3 {[%clk 00:00:14]} {[%emt 00:00:05]} Kd5
{[%clk 00:04:17]} {[%emt 00:00:02]} 40. Kd3 {[%clk 00:00:08]} {[%emt 00:00:11]}
e4+ {[%clk 00:03:33]} {[%emt 00:00:49]} 41. Ke3 {[%clk 00:00:11]} {[%emt
00:00:03]} Ke5 {[%clk 00:03:34]} {[%emt 00:00:04]} 42. h3 {[%clk 00:00:08]}
{[%emt 00:00:08]} g5 {[%clk 00:03:33]} {[%emt 00:00:05]} 43. fxe4 {[%clk
00:00:08]} {[%emt 00:00:05]} fxe4 {[%clk 00:03:36]} {[%emt 00:00:01]} 44. Kd2
{[%clk 00:00:07]} {[%emt 00:00:07]} Kd4 {[%clk 00:03:40]} {[%emt 00:00:02]} 45.
Ke2 {[%clk 00:00:11]} {[%emt 00:00:01]} e3 {[%clk 00:03:43]} {[%emt 00:00:01]}
46. h4 {[%clk 00:00:10]} {[%emt 00:00:06]} g4 {[%clk 00:03:47]} {[%emt
00:00:01]} 47. Ke1 {[%clk 00:00:11]} {[%emt 00:00:04]} Kd3 {[%clk 00:03:47]}
{[%emt 00:00:05]} 48. Kd1 {[%clk 00:00:15]} {[%emt 00:00:01]} h5 {[%clk
00:03:48]} {[%emt 00:00:04]} 49. Ke1 {[%clk 00:00:13]} {[%emt 00:00:07]} e2
{[%emt 00:00:12]} 0-1

[Event "Rapid Tournament (RAP)"]
[Site "Biel, Switzerland"]
[Date "2026.07.12"]
[Round "5.21"]
[White "Habibi, Ali"]
[Black "Moesching, Colin"]
[Result "1-0"]
[TimeControl "15 + 5"]
[WhiteTitle "-"]
[BlackTitle "-"]
[WhiteFideId "4604393"]
[BlackFideId "1345036"]
[WhiteElo "2187"]
[BlackElo "1820"]

1. Nf3 {[%clk 00:15:07]} {[%emt 00:00:03]} Nf6 {[%clk 00:15:05]} {[%emt
00:00:05]} 2. g3 {[%clk 00:15:11]} {[%emt 00:00:01]} d5 {[%clk 00:15:09]} 3.
Bg2 {[%clk 00:15:15]} {[%emt 00:00:01]} Bf5 {[%clk 00:15:13]} {[%emt 00:00:01]}
4. O-O {[%clk 00:15:18]} {[%emt 00:00:02]} h6 {[%clk 00:15:17]} {[%emt
00:00:01]} 5. d3 {[%clk 00:15:22]} {[%emt 00:00:01]} e6 {[%clk 00:15:19]}
{[%emt 00:00:04]} 6. Nbd2 {[%clk 00:15:25]} {[%emt 00:00:01]} Be7 {[%clk
00:15:18]} {[%emt 00:00:06]} 7. Qe1 {[%clk 00:15:29]} {[%emt 00:00:01]} O-O
{[%clk 00:15:22]} {[%emt 00:00:02]} 8. e4 {[%clk 00:15:33]} Bh7 {[%clk
00:15:26]} {[%emt 00:00:02]} 9. Qe2 {[%clk 00:15:38]} c5 {[%clk 00:15:26]}
{[%emt 00:00:04]} 10. Ne1 {[%clk 00:15:41]} {[%emt 00:00:03]} Nc6 {[%clk
00:15:24]} {[%emt 00:00:07]} 11. c3 {[%clk 00:15:44]} {[%emt 00:00:01]} Rc8
{[%clk 00:14:50]} {[%emt 00:00:40]} 12. f4 {[%clk 00:15:46]} {[%emt 00:00:02]}
Qb6 {[%clk 00:14:40]} {[%emt 00:00:15]} 13. Kh1 {[%clk 00:15:47]} {[%emt
00:00:04]} Rfd8 {[%clk 00:14:15]} {[%emt 00:00:31]} 14. e5 {[%clk 00:15:50]}
{[%emt 00:00:02]} Nd7 {[%clk 00:14:18]} {[%emt 00:00:01]} 15. Nef3 {[%clk
00:15:36]} {[%emt 00:00:18]} Qa6 {[%clk 00:14:22]} {[%emt 00:00:02]} 16. Ne1
{[%clk 00:15:37]} {[%emt 00:00:04]} d4 {[%clk 00:13:48]} {[%emt 00:00:40]} 17.
c4 {[%clk 00:15:39]} {[%emt 00:00:02]} b5 {[%clk 00:13:45]} {[%emt 00:00:09]}
18. b3 {[%clk 00:15:29]} {[%emt 00:00:15]} Nb6 {[%clk 00:13:28]} {[%emt
00:00:21]} 19. cxb5 {[%clk 00:15:01]} {[%emt 00:00:33]} Qxb5 {[%clk 00:13:25]}
{[%emt 00:00:09]} 20. Nc4 {[%clk 00:15:04]} {[%emt 00:00:01]} Nd5 {[%clk
00:13:23]} {[%emt 00:00:07]} 21. Bd2 {[%clk 00:15:01]} {[%emt 00:00:08]} a5
{[%clk 00:12:46]} {[%emt 00:00:43]} 22. g4 {[%clk 00:14:46]} {[%emt 00:00:19]}
Bh4 {[%clk 00:12:29]} {[%emt 00:00:21]} 23. Nf3 {[%clk 00:14:28]} {[%emt
00:00:24]} Be7 {[%clk 00:12:30]} {[%emt 00:00:04]} 24. g5 {[%clk 00:14:12]}
{[%emt 00:00:21]} Ndb4 {[%clk 00:12:21]} {[%emt 00:00:14]} 25. Ne1 {[%clk
00:14:15]} {[%emt 00:00:02]} Nd5 {[%clk 00:11:47]} {[%emt 00:00:39]} 26. h4
{[%clk 00:14:15]} {[%emt 00:00:06]} a4 {[%clk 00:11:45]} {[%emt 00:00:07]} 27.
bxa4 {[%clk 00:14:06]} {[%emt 00:00:13]} Qxa4 {[%clk 00:11:41]} {[%emt
00:00:09]} 28. gxh6 {[%clk 00:13:29]} {[%emt 00:00:42]} Qa6 {[%clk 00:10:34]}
{[%emt 00:01:12]} 29. Qg4 {[%clk 00:13:31]} {[%emt 00:00:03]} Bf8 {[%clk
00:10:19]} {[%emt 00:00:20]} 30. hxg7 {[%clk 00:13:33]} {[%emt 00:00:02]} Be7
{[%clk 00:10:15]} {[%emt 00:00:10]} 31. f5 {[%clk 00:13:27]} {[%emt 00:00:11]}
exf5 {[%clk 00:09:52]} {[%emt 00:00:28]} 32. Rxf5 {[%clk 00:13:31]} {[%emt
00:00:02]} Bxf5 {[%clk 00:08:43]} {[%emt 00:01:14]} 33. Qxf5 {[%clk 00:13:34]}
Ncb4 {[%clk 00:08:45]} {[%emt 00:00:03]} 34. h5 {[%clk 00:13:10]} {[%emt
00:00:29]} Qe6 {[%clk 00:08:31]} {[%emt 00:00:19]} 35. Qxe6 {[%clk 00:13:13]}
{[%emt 00:00:01]} fxe6 {[%clk 00:08:36]} {[%emt 00:00:02]} 36. h6 {[%clk
00:13:17]} {[%emt 00:00:01]} Bh4 {[%clk 00:08:15]} {[%emt 00:00:25]} 37. Be4
{[%clk 00:12:56]} {[%emt 00:00:26]} Ne7 {[%clk 00:08:10]} {[%emt 00:00:10]} 38.
Nf3 {[%clk 00:12:55]} {[%emt 00:00:05]} Bf2 {[%clk 00:08:06]} {[%emt 00:00:10]}
39. Ng5 {[%clk 00:12:50]} {[%emt 00:00:09]} Nf5 {[%clk 00:08:06]} {[%emt
00:00:06]} 40. Nxe6 {[%clk 00:12:37]} {[%emt 00:00:18]} Ng3+ {[%clk 00:08:11]}
41. Kg2 {[%clk 00:12:40]} {[%emt 00:00:01]} Nxe4 {[%clk 00:08:14]} {[%emt
00:00:02]} 42. dxe4 {[%clk 00:12:39]} {[%emt 00:00:06]} Be3 {[%clk 00:07:56]}
{[%emt 00:00:24]} 43. Nxd8 {[%clk 00:12:23]} {[%emt 00:00:21]} Bxd2 {[%clk
00:07:50]} {[%emt 00:00:11]} 44. Ne6 {[%clk 00:12:16]} {[%emt 00:00:10]} Bxh6
{[%clk 00:07:53]} {[%emt 00:00:03]} 45. Kf3 {[%clk 00:12:07]} {[%emt 00:00:14]}
Re8 {[%clk 00:07:46]} {[%emt 00:00:12]} 46. Nxc5 {[%clk 00:11:57]} {[%emt
00:00:16]} Nc6 {[%clk 00:07:32]} {[%emt 00:00:18]} 47. Nd7 {[%clk 00:11:42]}
{[%emt 00:00:20]} Bxg7 {[%clk 00:07:33]} {[%emt 00:00:04]} 48. Rg1 {[%clk
00:11:40]} {[%emt 00:00:07]} Re7 {[%clk 00:07:10]} {[%emt 00:00:28]} 49. Nf6+
{[%clk 00:11:42]} {[%emt 00:00:03]} Kf7 {[%clk 00:07:07]} {[%emt 00:00:07]} 50.
Ng4 {[%clk 00:11:13]} {[%emt 00:00:35]} Nxe5+ {[%clk 00:07:01]} {[%emt
00:00:11]} 51. Ngxe5+ {[%clk 00:11:13]} {[%emt 00:00:05]} Bxe5 {[%clk
00:07:06]} {[%emt 00:00:01]} 52. a4 {[%clk 00:10:57]} {[%emt 00:00:21]} Bb8
{[%clk 00:06:35]} {[%emt 00:00:35]} 53. Rb1 {[%clk 00:10:50]} {[%emt 00:00:11]}
Ba7 {[%clk 00:06:28]} {[%emt 00:00:14]} 54. Nd6+ {[%clk 00:10:43]} {[%emt
00:00:11]} Ke6 {[%clk 00:06:27]} {[%emt 00:00:06]} 55. Nb5 {[%clk 00:10:47]}
{[%emt 00:00:01]} Bc5 {[%clk 00:06:09]} {[%emt 00:00:23]} 56. Rc1 {[%clk
00:10:39]} {[%emt 00:00:12]} Bb4 {[%clk 00:06:12]} {[%emt 00:00:03]} 57. Rc4
{[%clk 00:10:42]} {[%emt 00:00:02]} Rf7+ {[%clk 00:06:03]} {[%emt 00:00:14]} 58.
Ke2 {[%clk 00:10:46]} {[%emt 00:00:02]} Bc3 {[%clk 00:06:02]} {[%emt 00:00:06]}
59. Nxd4+ {[%clk 00:10:43]} {[%emt 00:00:08]} Bxd4 {[%clk 00:06:05]} {[%emt
00:00:01]} 60. Rxd4 {[%clk 00:10:46]} {[%emt 00:00:02]} Ke5 {[%clk 00:06:05]}
{[%emt 00:00:05]} 61. Ke3 {[%clk 00:10:47]} {[%emt 00:00:04]} Rh7 {[%clk
00:06:07]} {[%emt 00:00:03]} 62. Rd5+ {[%clk 00:10:51]} {[%emt 00:00:02]} Ke6
{[%clk 00:06:11]} {[%emt 00:00:01]} 63. a5 {[%clk 00:10:55]} Rh3+ {[%clk
00:06:14]} {[%emt 00:00:01]} 64. Kd4 {[%clk 00:10:59]} Ra3 {[%clk 00:06:18]}
{[%emt 00:00:02]} 65. Re5+ {[%clk 00:10:59]} {[%emt 00:00:04]} Kd6 {[%clk
00:06:22]} {[%emt 00:00:02]} 66. Rb5 {[%clk 00:10:57]} {[%emt 00:00:07]} Ra4+
{[%clk 00:06:26]} {[%emt 00:00:01]} 67. Ke3 {[%clk 00:11:00]} {[%emt 00:00:01]}
Ra3+ {[%clk 00:06:27]} {[%emt 00:00:04]} 68. Kf4 {[%clk 00:11:04]} {[%emt
00:00:01]} Ra1 {[%clk 00:06:23]} {[%emt 00:00:10]} 69. e5+ {[%clk 00:11:04]}
{[%emt 00:00:05]} Ke6 {[%clk 00:06:21]} {[%emt 00:00:06]} 70. Rb6+ {[%clk
00:11:07]} {[%emt 00:00:02]} Kd5 {[%clk 00:06:25]} {[%emt 00:00:01]} 71. Rd6+
{[%clk 00:11:08]} {[%emt 00:00:03]} Kc5 {[%clk 00:06:29]} {[%emt 00:00:02]} 72.
a6 {[%clk 00:11:12]} {[%emt 00:00:01]} Rf1+ {[%clk 00:06:22]} {[%emt 00:00:12]}
73. Ke4 {[%clk 00:11:16]} {[%emt 00:00:02]} Re1+ {[%clk 00:06:26]} {[%emt
00:00:01]} 74. Kf5 {[%clk 00:11:20]} Rh1 {[%clk 00:06:17]} {[%emt 00:00:14]} 75.
a7 {[%clk 00:11:18]} {[%emt 00:00:07]} Ra1 {[%clk 00:06:21]} 76. Rd7 {[%clk
00:11:22]} {[%emt 00:00:01]} Kc6 {[%clk 00:06:23]} {[%emt 00:00:04]} 77. Ke6
{[%clk 00:11:23]} {[%emt 00:00:03]} Kb6 {[%clk 00:06:13]} {[%emt 00:00:15]} 78.
Ke7 {[%clk 00:11:27]} {[%emt 00:00:02]} 1-0

[Event "Rapid Tournament (RAP)"]
[Site "Biel, Switzerland"]
[Date "2026.07.12"]
[Round "5.22"]
[White "Gluckman, David"]
[Black "Boyer, Jean-Francois"]
[Result "1-0"]
[TimeControl "15 + 5"]
[WhiteTitle "-"]
[BlackTitle "-"]
[WhiteFideId "14300010"]
[BlackFideId "650226"]
[WhiteElo "2161"]
[BlackElo "1749"]

1. e4 {[%clk 00:15:07]} {[%emt 00:00:03]} e5 {[%clk 00:15:08]} {[%emt
00:00:02]} 2. Nf3 {[%clk 00:15:10]} {[%emt 00:00:03]} Nc6 {[%clk 00:15:11]}
{[%emt 00:00:02]} 3. d4 {[%clk 00:15:14]} {[%emt 00:00:02]} exd4 {[%clk
00:15:11]} {[%emt 00:00:04]} 4. Nxd4 {[%clk 00:15:18]} {[%emt 00:00:01]} Nf6
{[%clk 00:14:52]} {[%emt 00:00:25]} 5. Nc3 {[%clk 00:15:21]} {[%emt 00:00:01]}
Bb4 {[%clk 00:14:45]} {[%emt 00:00:11]} 6. Nxc6 {[%clk 00:15:23]} {[%emt
00:00:03]} bxc6 {[%clk 00:14:40]} {[%emt 00:00:11]} 7. Bd3 {[%clk 00:15:27]}
{[%emt 00:00:01]} d5 {[%clk 00:14:17]} {[%emt 00:00:28]} 8. exd5 {[%clk
00:15:31]} {[%emt 00:00:01]} cxd5 {[%clk 00:14:02]} {[%emt 00:00:19]} 9. O-O
{[%clk 00:15:34]} {[%emt 00:00:02]} O-O {[%clk 00:14:02]} {[%emt 00:00:05]} 10.
Bg5 {[%clk 00:15:30]} {[%emt 00:00:09]} c6 {[%clk 00:12:02]} {[%emt 00:02:06]}
11. Na4 {[%clk 00:15:34]} {[%emt 00:00:01]} Qd6 {[%clk 00:10:29]} {[%emt
00:01:37]} 12. Qc1 {[%clk 00:13:07]} {[%emt 00:02:33]} Ne4 {[%clk 00:09:41]}
{[%emt 00:00:53]} 13. Bf4 {[%clk 00:13:05]} {[%emt 00:00:07]} Qf6 {[%clk
00:09:25]} {[%emt 00:00:20]} 14. c3 {[%clk 00:12:51]} {[%emt 00:00:20]} Ba5
{[%clk 00:09:16]} {[%emt 00:00:13]} 15. f3 {[%clk 00:12:18]} {[%emt 00:00:39]}
Nd6 {[%clk 00:08:30]} {[%emt 00:00:51]} 16. Bg5 {[%clk 00:12:02]} {[%emt
00:00:21]} Qe6 {[%clk 00:08:03]} {[%emt 00:00:31]} 17. Re1 {[%clk 00:12:05]}
{[%emt 00:00:02]} Qd7 {[%clk 00:07:46]} {[%emt 00:00:23]} 18. Re7 {[%clk
00:11:49]} {[%emt 00:00:21]} Qd8 {[%clk 00:07:25]} {[%emt 00:00:26]} 19. Rxa7
{[%clk 00:11:39]} {[%emt 00:00:15]} Bb6+ {[%clk 00:07:07]} {[%emt 00:00:22]} 20.
Kh1 {[%clk 00:11:42]} {[%emt 00:00:03]} f6 {[%clk 00:07:11]} 21. Rxa8 {[%clk
00:11:39]} {[%emt 00:00:08]} fxg5 {[%clk 00:07:14]} {[%emt 00:00:02]} 22. Nxb6
{[%clk 00:10:49]} {[%emt 00:00:55]} Qxb6 {[%clk 00:07:16]} {[%emt 00:00:02]} 23.
Qxg5 {[%clk 00:10:44]} {[%emt 00:00:10]} Qb7 {[%clk 00:06:44]} {[%emt
00:00:37]} 24. Ra4 {[%clk 00:10:34]} {[%emt 00:00:15]} Nf5 {[%clk 00:06:01]}
{[%emt 00:00:48]} 25. Rb4 {[%clk 00:10:22]} {[%emt 00:00:18]} Qc7 {[%clk
00:05:47]} {[%emt 00:00:19]} 26. Bxf5 {[%clk 00:10:14]} {[%emt 00:00:13]} Rxf5
{[%clk 00:05:40]} {[%emt 00:00:12]} 27. Qg3 {[%clk 00:10:15]} {[%emt 00:00:04]}
Qd8 {[%clk 00:04:40]} {[%emt 00:01:04]} 28. Re1 {[%clk 00:10:13]} {[%emt
00:00:08]} Rg5 {[%clk 00:04:32]} {[%emt 00:00:12]} 29. Qf4 {[%clk 00:09:32]}
{[%emt 00:00:45]} Rf5 {[%clk 00:04:22]} {[%emt 00:00:16]} 30. Qe3 {[%clk
00:09:33]} {[%emt 00:00:04]} Rf7 {[%clk 00:04:12]} {[%emt 00:00:16]} 31. Qe8+
{[%clk 00:09:32]} {[%emt 00:00:08]} Qxe8 {[%clk 00:04:14]} 32. Rxe8+ {[%clk
00:09:36]} Re7 {[%emt 00:00:02]} 33. Rf8+ {[%clk 00:09:40]} 1-0

[Event "Rapid Tournament (RAP)"]
[Site "Biel, Switzerland"]
[Date "2026.07.12"]
[Round "5.23"]
[White "Lang, Fabian"]
[Black "Kukushkin, Ivan"]
[Result "0-1"]
[TimeControl "15 + 5"]
[WhiteTitle "-"]
[BlackTitle "-"]
[WhiteFideId "1310160"]
[BlackFideId "11634103"]
[WhiteElo "1900"]
[BlackElo "2186"]

1. d4 {[%clk 00:15:08]} {[%emt 00:00:04]} d5 {[%clk 00:15:09]} 2. Nf3 {[%clk
00:15:12]} Nf6 {[%clk 00:15:13]} {[%emt 00:00:01]} 3. g3 {[%clk 00:15:15]} e6
{[%clk 00:15:14]} {[%emt 00:00:04]} 4. Bg2 {[%clk 00:15:16]} {[%emt 00:00:04]}
Bd6 {[%clk 00:15:08]} {[%emt 00:00:11]} 5. O-O {[%clk 00:15:18]} {[%emt
00:00:04]} O-O {[%clk 00:15:11]} {[%emt 00:00:02]} 6. c4 {[%clk 00:15:21]}
{[%emt 00:00:01]} Nc6 {[%clk 00:15:14]} {[%emt 00:00:02]} 7. Nbd2 {[%clk
00:14:05]} {[%emt 00:01:21]} Re8 {[%clk 00:15:02]} {[%emt 00:00:17]} 8. Qc2
{[%clk 00:13:39]} {[%emt 00:00:31]} Bd7 {[%clk 00:14:45]} {[%emt 00:00:23]} 9.
a3 {[%clk 00:13:09]} {[%emt 00:00:35]} Bf8 {[%clk 00:13:42]} {[%emt 00:01:08]}
10. e4 {[%clk 00:12:42]} {[%emt 00:00:32]} dxe4 {[%clk 00:13:32]} {[%emt
00:00:15]} 11. Nxe4 {[%clk 00:12:42]} {[%emt 00:00:04]} Nxe4 {[%clk 00:12:58]}
{[%emt 00:00:40]} 12. Qxe4 {[%clk 00:12:45]} {[%emt 00:00:01]} Na5 {[%clk
00:12:08]} {[%emt 00:00:56]} 13. Qc2 {[%clk 00:12:24]} {[%emt 00:00:26]} Bc6
{[%clk 00:11:12]} {[%emt 00:01:02]} 14. Bd2 {[%clk 00:11:08]} {[%emt 00:01:18]}
Bxf3 {[%clk 00:10:59]} {[%emt 00:00:20]} 15. Bxf3 {[%clk 00:11:12]} {[%emt
00:00:01]} Nc6 {[%clk 00:11:03]} {[%emt 00:00:02]} 16. Bxc6 {[%clk 00:10:00]}
{[%emt 00:01:17]} bxc6 {[%clk 00:11:06]} {[%emt 00:00:02]} 17. Bc3 {[%clk
00:09:50]} {[%emt 00:00:14]} Qg5 {[%clk 00:11:02]} {[%emt 00:00:09]} 18. Rfe1
{[%clk 00:09:16]} {[%emt 00:00:38]} Bd6 {[%clk 00:10:31]} {[%emt 00:00:36]} 19.
Qe4 {[%clk 00:08:50]} {[%emt 00:00:32]} c5 {[%clk 00:10:24]} {[%emt 00:00:13]}
20. d5 {[%clk 00:08:26]} {[%emt 00:00:28]} Rad8 {[%clk 00:09:41]} {[%emt
00:00:47]} 21. f4 {[%clk 00:07:46]} {[%emt 00:00:46]} Qg4 {[%clk 00:09:35]}
{[%emt 00:00:10]} 22. Re2 {[%clk 00:06:44]} {[%emt 00:01:08]} f5 {[%clk
00:09:19]} {[%emt 00:00:21]} 23. Qe3 {[%clk 00:06:12]} {[%emt 00:00:36]} exd5
{[%clk 00:08:13]} {[%emt 00:01:13]} 24. Qxe8+ {[%clk 00:06:12]} {[%emt
00:00:05]} Rxe8 {[%clk 00:08:17]} 25. Rxe8+ {[%clk 00:06:16]} {[%emt 00:00:02]}
Kf7 {[%clk 00:08:21]} 26. Rae1 {[%clk 00:05:40]} {[%emt 00:00:41]} d4 {[%clk
00:08:23]} {[%emt 00:00:03]} 27. Ba5 {[%clk 00:05:40]} {[%emt 00:00:05]} Bxf4
{[%clk 00:07:03]} {[%emt 00:01:25]} 28. R8e7+ {[%clk 00:04:23]} {[%emt
00:01:20]} Kg6 {[%clk 00:06:43]} {[%emt 00:00:27]} 29. Bxc7 {[%clk 00:03:43]}
{[%emt 00:00:45]} Be3+ {[%clk 00:06:20]} {[%emt 00:00:28]} 30. Kg2 {[%clk
00:03:45]} {[%emt 00:00:03]} f4 {[%clk 00:05:03]} {[%emt 00:01:23]} 31. Be5
{[%clk 00:03:14]} {[%emt 00:00:35]} f3+ {[%clk 00:04:52]} {[%emt 00:00:16]} 32.
Kh1 {[%clk 00:03:12]} {[%emt 00:00:07]} f2 {[%clk 00:04:47]} {[%emt 00:00:10]}
0-1

[Event "Rapid Tournament (RAP)"]
[Site "Biel, Switzerland"]
[Date "2026.07.12"]
[Round "5.24"]
[White "Filimonov, Arsenii"]
[Black "Fogo Esquivel, Levi Kalani Alexander"]
[Result "0-1"]
[TimeControl "15 + 5"]
[WhiteTitle "-"]
[BlackTitle "-"]
[WhiteFideId "34171584"]
[BlackFideId "5183189"]
[WhiteElo "1843"]
[BlackElo "2088"]

1. e4 {[%clk 00:15:08]} {[%emt 00:13:43]} e5 {[%clk 00:15:10]} 2. Nf3 {[%clk
00:15:12]} {[%emt 00:00:02]} Nc6 {[%clk 00:15:14]} 3. d4 {[%clk 00:15:16]}
{[%emt 00:00:02]} exd4 {[%clk 00:15:18]} 4. Nxd4 {[%clk 00:15:20]} {[%emt
00:00:02]} Bc5 {[%clk 00:15:21]} 5. Be3 {[%clk 00:15:23]} {[%emt 00:00:01]} Qf6
{[%clk 00:15:24]} {[%emt 00:00:03]} 6. c3 {[%clk 00:15:27]} {[%emt 00:00:02]}
Nge7 {[%clk 00:15:27]} {[%emt 00:00:02]} 7. Nc2 {[%clk 00:15:29]} {[%emt
00:00:02]} Bb6 {[%clk 00:14:52]} {[%emt 00:00:40]} 8. g3 {[%clk 00:15:26]}
{[%emt 00:00:08]} d5 {[%clk 00:14:25]} {[%emt 00:00:32]} 9. Bxb6 {[%clk
00:15:07]} {[%emt 00:00:24]} axb6 {[%clk 00:14:25]} {[%emt 00:00:05]} 10. Bg2
{[%clk 00:14:30]} {[%emt 00:00:41]} dxe4 {[%clk 00:14:24]} {[%emt 00:00:07]} 11.
Bxe4 {[%clk 00:14:21]} {[%emt 00:00:14]} Bh3 {[%clk 00:14:27]} {[%emt
00:00:02]} 12. Qf3 {[%clk 00:13:47]} {[%emt 00:00:39]} Qe6 {[%clk 00:14:21]}
{[%emt 00:00:11]} 13. Qe2 {[%clk 00:13:29]} {[%emt 00:00:23]} O-O {[%clk
00:14:02]} {[%emt 00:00:23]} 14. Bxc6 {[%clk 00:12:42]} {[%emt 00:00:53]} Qxc6
{[%clk 00:13:57]} {[%emt 00:00:10]} 15. f3 {[%clk 00:12:43]} {[%emt 00:00:04]}
Nf5 {[%clk 00:13:48]} {[%emt 00:00:13]} 16. Kd1 {[%clk 00:10:07]} {[%emt
00:02:42]} Rfe8 {[%clk 00:12:48]} {[%emt 00:01:05]} 17. Qf2 {[%clk 00:10:10]}
{[%emt 00:00:02]} Qb5 {[%clk 00:12:49]} {[%emt 00:00:04]} 18. g4 {[%clk
00:06:54]} {[%emt 00:03:21]} Rad8+ {[%clk 00:12:36]} {[%emt 00:00:17]} 19. Kc1
{[%clk 00:05:50]} {[%emt 00:01:10]} Re2 {[%clk 00:12:40]} 20. Qg1 {[%clk
00:05:52]} {[%emt 00:00:03]} Rxc2+ {[%clk 00:11:16]} {[%emt 00:01:29]} 21. Kxc2
{[%clk 00:05:55]} {[%emt 00:00:02]} Qd3+ {[%clk 00:11:20]} 22. Kc1 {[%clk
00:06:00]} {[%emt 00:00:01]} Ne3 {[%clk 00:11:24]} 23. Qxe3 {[%clk 00:05:20]}
{[%emt 00:00:45]} Qxe3+ {[%clk 00:11:27]} {[%emt 00:00:02]} 24. Kc2 {[%clk
00:05:24]} {[%emt 00:00:01]} Qd3+ {[%clk 00:11:19]} {[%emt 00:00:12]} 25. Kb3
{[%clk 00:05:19]} {[%emt 00:00:11]} Bxg4 {[%clk 00:11:21]} {[%emt 00:00:03]} 26.
Re1 {[%clk 00:05:02]} {[%emt 00:00:21]} Be6+ {[%clk 00:11:22]} {[%emt
00:00:05]} 27. Rxe6 {[%clk 00:04:57]} {[%emt 00:00:11]} Qd1+ {[%clk 00:11:25]}
{[%emt 00:00:01]} 28. Kb4 {[%clk 00:04:50]} {[%emt 00:00:11]} fxe6 {[%clk
00:11:26]} {[%emt 00:00:05]} 0-1